Cogmind - Beta 16 @@@ ROGUE MODE // 2025.11.05 @ 11:59:25 Player: SilentMoose Result: Self-destructed Performance ------------- Evolutions (1) 500 Regions Visited (3) 600 Robots Destroyed (2) 10 Value Destroyed (81) 81 Prototype IDs (0) 0 Alien Tech Used (0) 0 Bonus (0) 0 TOTAL SCORE: 1191 Bonus ------- None Cogmind --------- Core Integrity 172/400 Matter 300/300 Energy 100/100 System Corruption 0% Temperature Cool (0) Movement Core (100) Ox1 Location -9/Materials Parts ------- > --- POWER (1) -------- (None) > --- PROPULSION (4) --- (None) > --- UTILITY (2) ------ Small Storage Unit > --- WEAPON (2) ------- (None) > --- INVENTORY (8) ---- Light Ion Engine Light Treads Light Treads Wheel Compact Wheel Improved Heat Sink Particle Gun Peak State ------------ > --- POWER ------------ Ion Engine > --- PROPULSION ------- Aluminum Leg Aluminum Leg Aluminum Leg > --- UTILITY ---------- Small Storage Unit Tractor Beam > --- WEAPON ----------- EM Pulse Gun Assault Rifle > --- INVENTORY -------- Light Ion Engine Light Treads Light Treads Wheel Compact Wheel Improved Heat Sink Particle Gun [Rating: 9] Favorites ----------- Power Ion Engine Engine Ion Engine Propulsion Aluminum Leg Leg Aluminum Leg Utility Small Storage Unit Device Tractor Beam Storage Small Storage Unit Weapon EM Pulse Gun Energy Gun EM Pulse Gun Ballistic Gun Assault Rifle Build | -11 -10 -10 -9 ------- Run | Yrd Mat Min Mat Slots Evolved 2 | . . . 2 Power . | . . . . Propulsion 2 | . . . 2 Utility . | . . . . Weapon . | . . . . Parts Attached 9 | 7 1 . 1 Power 1 | 1 . . . Engine 1 | 1 . . . Core . | . . . . Reactor . | . . . . Propulsion 3 | 2 . . 1 Treads . | . . . . Leg 3 | 2 . . 1 Wheel . | . . . . Hover . | . . . . Flight . | . . . . Utility 2 | 1 1 . . Device 1 | . 1 . . Storage 1 | 1 . . . Processor . | . . . . Hackware . | . . . . Protection . | . . . . Artifact . | . . . . Weapon 3 | 3 . . . Energy Gun 2 | 2 . . . Energy Cannon . | . . . . Ballistic Gun 1 | 1 . . . Ballistic Cannon . | . . . . Launcher . | . . . . Special Weapon . | . . . . Impact Weapon . | . . . . Slashing Weapon . | . . . . Piercing Weapon . | . . . . Special Melee Weapon . | . . . . Unidentified Prototypes . | . . . . Parts Lost 8 | . 1 . 7 Power 1 | . . . 1 Propulsion 3 | . . . 3 Utility 1 | . . . 1 Weapon 3 | . 1 . 2 Highest Loss Streak 7 | . 1 . 7 To Critical Strikes . | . . . . Average Backups 6 | 3 6 7 7 Power . | . 1 1 1 Propulsion 3 | 2 4 4 4 Utility . | . . . 1 Weapon . | . 1 . 1 Tool/Special . | . . . . Unused Backups 7 | . . . 7 Power 1 | . . . 1 Propulsion 4 | . . . 4 Utility 1 | . . . 1 Weapon 1 | . . . 1 Tool/Special . | . . . . Average Slot Usage (%) 88 | . 95 100 75 Engine 12 | . 14 14 10 Leg 28 | . 28 28 28 Device 10 | . 11 14 7 Storage 12 | . 14 14 11 Energy Gun 11 | . 12 14 8 Ballistic Gun 12 | . 14 14 9 Peak Build Rating 9 | 6 7 8 9 Average Rating 7 | 5 6 7 7 On Entrance 5 | . 6 6 8 Avg Prop Armor Cover (%) . | . . . . Naked Turns . | . . . . Heaviest Build 15 | 14 15 15 15 Greatest Support 30 | 20 20 20 30 Greatest Overweight (x) 2 | 2 . . 1 Average Overweight (x) . | . . . . Largest Inventory Capacity 8 | 8 8 8 8 Average Capacity 7 | 7 8 8 8 Most Carried 8 | 6 6 8 7 Average Carried 6 | 3 6 7 7 Final Capacity 8 | 8 8 8 8 Final Carried 8 | 6 6 8 7 Class Distribution -------------------- 100% | Mutant Dominant Class ---------------- Mutant | -10/Materials Mutant | -10/Mines Mutant | -9/Materials Resources | -11 -10 -10 -9 ----------- Run | Yrd Mat Min Mat Matter Collected 300 | 234 . 66 . Remotely 66 | . . 66 . Salvage Created 90 | . . 90 . Parts 4 | . . 4 . Haulers Intercepted . | . . . . Recyclers Shooed . | . . . . Parts Field Recycled . | . . . . Retrieved Matter . | . . . . Parts Self-Destructed . | . . . . Prevented . | . . . . Parts Restored . | . . . . Kills | -11 -10 -10 -9 ------- Run | Yrd Mat Min Mat Combat Hostiles Destroyed 2 | . . 2 . Guns 1 | . . 1 . AOE 1 | . . 1 . Classes Destroyed 1 | . . 1 . Grunt 2 | . . 2 . Best Kill Streak 2 | . . 2 . Combat Bots Only 2 | . . 2 . Max Kills in Single Turn 1 | . . 1 . Gunslinging . | . . . . Exploded 1 | . . 1 . Melee . | . . . . Uniques/NPCs Destroyed . | . . . . Combat | -11 -10 -10 -9 -------- Run | Yrd Mat Min Mat Hostile Shots Fired 135 | . 34 12 89 Missed 37 | . 14 2 21 Hits 98 | . 20 10 68 Projectile 98 | . 20 10 68 Damage Taken 855 | . 166 132 557 Core 245 | . 17 . 228 Absorbed by Shields . | . . . . Core Remaining (%) 96 | 100 . 93 . Volleys Fired 5 | . 2 3 . Largest 2 | . 2 2 . Hottest 60 | . 60 60 . Shots Fired 10 | . 4 6 . Gun 10 | . 4 6 . Cannon . | . . . . Launcher . | . . . . Special . | . . . . Kinetic 5 | . 2 3 . Thermal . | . . . . Explosive . | . . . . Electromagnetic 5 | . 2 3 . Robot Hit Streak 4 | . . 4 . Robot Miss Streak 4 | . 4 1 . Penetration Max . | . . . . Secondary Targets . | . . . . Shots Hit Robots 5 | . . 5 . Core Hits 4 | . . 4 . Critical Kills . | . . . . Critical Parts Destroyed . | . . . . Critical Strikes . | . . . . Melee Attacks . | . . . . Impact . | . . . . Slashing . | . . . . Piercing . | . . . . Sneak Attacks . | . . . . Combat Hostiles . | . . . . Follow-up Attacks . | . . . . Damage Inflicted 109 | . . 109 . Guns 53 | . . 53 . Cannons . | . . . . Explosions 56 | . . 56 . Melee . | . . . . Ramming . | . . . . Kinetic 12 | . . 12 . Thermal 56 | . . 56 . Explosive . | . . . . Electromagnetic 41 | . . 41 . Impact . | . . . . Slashing . | . . . . Piercing . | . . . . Highest Corruption . | . . . . Average Corruption . | . . . . Corruption Purged . | . . . . Corruption Blocked . | . . . . Overload Shots . | . . . . Overflow Damage . | . . . . Projectiles . | . . . . Explosions . | . . . . Melee . | . . . . Knockbacks . | . . . . Impact . | . . . . Kinetic . | . . . . Secondary . | . . . . Self-Inflicted Damage . | . . . . Shots . | . . . . Rammed . | . . . . Targets Rammed . | . . . . Kicked . | . . . . Crushed . | . . . . Highest Temperature 30 | . . 30 . Average Temperature 19 | . . 19 . Received Heat Transfer 135 | . . 75 60 Siege Activations . | . . . . Martial Activations . | . . . . Shielding Activations . | . . . . Robots Disrupted . | . . . . Combat Hostiles . | . . . . Robots Corrupted . | . . . . Combat Hostiles . | . . . . Parts Fried . | . . . . Impact Corruptions . | . . . . Robots Melted . | . . . . Combat Hostiles . | . . . . Parts Melted . | . . . . Heat Transferred 50 | . . 50 . Parts Sabotaged . | . . . . Parts Stolen . | . . . . Parts Stripped . | . . . . Power Chain Reactions 1 | . . 1 . Alert | -11 -10 -10 -9 ------- Run | Yrd Mat Min Mat Maximum Alert Level . | . . . . Low Security (%) 100 | 100 100 100 100 Level 1 . | . . . . Level 2 . | . . . . Level 3 . | . . . . Level 4 . | . . . . Level 5 . | . . . . High Security . | . . . . Max Security . | . . . . Peak Influence 55 | . . 55 1 Initial 1 | . . . 1 Average 6 | . . 25 . Influence Increases 55 | . . 55 . Destroy 0b10 Robot/C 40 | . . 40 . Destroy Leader 10 | . . 10 . Destroy Structure 5 | . . 5 . Influence Decreases 55 | . . 50 5 Entered New Map 4 | . . . 4 Time Decay 51 | . . 50 1 Squads Dispatched 3 | . . . 3 Investigation 1 | . . . 1 Extermination . | . . . . Reinforcement 2 | . . . 2 Assault . | . . . . Garrison . | . . . . Intercept . | . . . . Searches Triggered . | . . . . Construction Impeded . | . . . . Haulers Reinforced . | . . . . Active Scanning Responses . | . . . . Cargo Convoy Interrupts . | . . . . Stealth | -11 -10 -10 -9 --------- Run | Yrd Mat Min Mat Distress Signals . | . . . . Communications Jammed . | . . . . Distress Signals . | . . . . Times Spotted 13 | . 3 2 8 Peak Tracking Total 7 | . 3 2 7 Tactical Retreats . | . . . . Traps | -11 -10 -10 -9 ------- Run | Yrd Mat Min Mat Traps Triggered 1 | . . . 1 Indirectly . | . . . . Trap Hack Attempts . | . . . . Triggered . | . . . . Disarmed . | . . . . Reprogrammed . | . . . . Reused . | . . . . Traps Extracted . | . . . . Installed . | . . . . Triggered . | . . . . Machines | -11 -10 -10 -9 ---------- Run | Yrd Mat Min Mat Machines Disabled . | . . . . Max in Single Turn . | . . . . Machines Repaired . | . . . . Machines Dismantled . | . . . . Machines Sabotaged . | . . . . Overloaded Fab Kills . | . . . . Hacking | -11 -10 -10 -9 --------- Run | Yrd Mat Min Mat Machines Accessed . | . . . . Terminals . | . . . . Fabricators . | . . . . Repair Stations . | . . . . Recycling Units . | . . . . Scanalyzers . | . . . . Garrison Access . | . . . . Total Hacks . | . . . . Successful . | . . . . Failed . | . . . . Catastrophic . | . . . . Database Lockouts . | . . . . Manual . | . . . . Terminals . | . . . . Fabricators . | . . . . Repair Stations . | . . . . Recycling Units . | . . . . Scanalyzers . | . . . . Garrison Access . | . . . . Terminal Hacks . | . . . . Fabricator Hacks . | . . . . Repair Station Hacks . | . . . . Recycling Unit Hacks . | . . . . Scanalyzer . | . . . . Garrison Access Hacks . | . . . . Unauthorized Hacks . | . . . . Terminals . | . . . . Fabricators . | . . . . Repair Stations . | . . . . Recycling Units . | . . . . Scanalyzers . | . . . . Garrison Access . | . . . . Data Cores Recovered . | . . . . Used . | . . . . Hacking Detections . | . . . . Full Trace Events . | . . . . Feedback Events . | . . . . Feedback Blocked . | . . . . Robot Schematics Acquired . | . . . . Robots Built . | . . . . Authchips . | . . . . Time . | . . . . Total Robot Build Rating . | . . . . Part Schematics Acquired . | . . . . Parts Built . | . . . . Authchips . | . . . . Time . | . . . . Total Part Build Rating . | . . . . Part Studies Acquired . | . . . . Parts Repaired . | . . . . Time . | . . . . Parts Recycled . | . . . . Recycled Matter . | . . . . Retrieved Matter . | . . . . Retrieved Components . | . . . . Parts Scanalyzed . | . . . . Part Schematics Acquired . | . . . . Parts Damaged . | . . . . Bothacking | -11 -10 -10 -9 ------------ Run | Yrd Mat Min Mat Used RIF Installer . | . . . . Robots Hacked . | . . . . Non-combat . | . . . . Combat . | . . . . Robot Hacks Applied . | . . . . Relay Couplers Released . | . . . . Fabnet Peak Effective % . | . . . . Robots Rewired . | . . . . Allies Hacked . | . . . . Hacks Repelled . | . . . . Allies | -11 -10 -10 -9 -------- Run | Yrd Mat Min Mat Total Allies . | . . . . Largest Group . | . . . . Highest-Rated Group . | . . . . Highest-Rated Ally . | . . . . Total Orders . | . . . . Ally Attacks . | . . . . Total Damage . | . . . . Kills . | . . . . Allies Corrupted . | . . . . Allies Melted . | . . . . Intel | -11 -10 -10 -9 ------- Run | Yrd Mat Min Mat Active Infowar (turns) . | . . . . Robot Analysis Total . | . . . . Derelict Logs Recovered 1 | . . 1 . Drone Launches . | . . . . Drone Recoveries . | . . . . Exploration | -11 -10 -10 -9 ------------- Run | Yrd Mat Min Mat Turns Passed 433 | 89 90 108 146 Spaces Moved 325 | 61 69 78 117 Core 8 | 7 . . 1 Treads . | . . . . Legs 317 | 54 69 78 116 Wheels . | . . . . Hover . | . . . . Flight . | . . . . Fastest Speed 50 | 50 120 120 100 Average Speed 121 | 119 120 120 123 Slowest Speed 190 | 150 120 120 190 Overloaded Moves . | . . . . Propulsion Burnouts . | . . . . Robots Hopped . | . . . . Potential Cave-ins . | . . . . Cave-ins Triggered . | . . . . Exploration Rate (%) 15 | 4 18 27 11 Regions Visited 3 Branch Regions 1 Pre-discovered Areas . | . . . . Known Exits Taken . | . . . . Unknown Exits Taken 3 | 1 1 1 . Scrap Searched 1 | . . 1 . Spaces Dug . | . . . . Terrain Destroyed 6 | . . 6 . Melee . | . . . . Projectile . | . . . . AOE 6 | . . 6 . Terrain Rammed . | . . . . Walls Destroyed . | . . . . Machines Disabled . | . . . . Actions | -11 -10 -10 -9 --------- Run | Yrd Mat Min Mat Total 348 | 73 71 86 118 Wait 2 | . . 2 . Move 322 | 60 68 77 117 Hop . | . . . . Pick Up 9 | 6 . 3 . Fast Attach 7 | 6 1 . . Attach 2 | . . 1 1 Detach . | . . . . Swap 1 | 1 . . . Drop . | . . . . Fire 5 | . 2 3 . Melee . | . . . . Ram . | . . . . Kick . | . . . . Crush . | . . . . Escape Stasis . | . . . . Rewire . | . . . . Trap . | . . . . Miscellaneous . | . . . . Route ------- -11/Scrapyard -10/Materials -10/Mines -9/Materials (discovered 4 exits: Mat x2 / Sto x2) History --------- Turn | Location | Event 9 | -11/Scrapyard | Discovered new exit (range 16) 90 | -11/Scrapyard | Entered Materials 174 | -10/Materials | Discovered new exit (range 5) 180 | -10/Materials | Entered Mines 249 | -10/Mines | Discovered new exit (range 12) 275 | -10/Mines | Learned 8 Materials zone layouts 288 | -10/Mines | Entered Materials 288 | -9/Materials | Evolved 2 slots: Propulsion x2 289 | -9/Materials | Identified exit to Storage 289 | -9/Materials | Identified exit to Materials 309 | -9/Materials | Build established: Mutant 432 | -9/Materials | Core integrity fell below 50% 434 | -9/Materials | Self-destructed Last Messages --------------- 00317_ O-16 Technician: "IFF HANDSHAKE FAILED. SECURING TERMINAL." 00354_ ALERT: Hostiles spotted, dispatching reinforcements to Terminal M003. 00357_ Triggered Alarm Trap. 00357_ An alarm sounds. 00357_ ALERT: Alarm triggered, dispatching investigation squad. 00357_ U-05 Engineer lays Concrete. 00387_ O-16 Technician: "IFF HANDSHAKE FAILED. SECURING TERMINAL." 00389_ Tractor Beam destroyed. 00393_ Aluminum Leg destroyed. 00394_ ALERT: Hostiles spotted, dispatching reinforcements to Terminal M012. 00401_ EM Pulse Gun destroyed. 00403_ Aluminum Leg destroyed. 00414_ Assault Rifle destroyed. 00427_ Ion Engine destroyed. 00433_ Aluminum Leg destroyed. Map ----- +----------------------------------------------------+ | ?? #?# """"" # # """ #??????????# | | ?? #?# """"" # # """ #??????????# | | ?? #?# """"" + + """ #??????????# | | ?? ####?# # # #??????????# | | ??# #????######### # #??????????# | | ??#### ###????# / #??????????######+ | | ???# #????# ##########/#######??????????????# | | ???# #????# #??????# #??????????????# | | ???# > #????# ######## #??????????????# | | ???# #????# # # #??????????????# | | ???# #????# # # #??????????????# | | ??####+####???# # # """ """ #??????????????# | | ?? #???# # """ # """ """ #??????????????# | | ?? #???# # """ # """ """ #?????????????? | | ?? #???# # """ # #??????????????# | | ?? #???# ######+#####/#####??????????????# | | ??""" #???# gs#?????????????????# | | ??""" #???# s #?????????????????# | | ??""" "T" #???# ssg##########????????# | | ?? """ #???####### # #????????# | | ??#########?????????# # """ #????????# | | ?? #?????????????# # """ #????????# | | ??""" #?????????????# + """ #???????? | | ??????????????????#### # ##???????# | | ????????????########?# # """ #???????# | | ????????????# =#?# @ # """ ##???????# | | ????????????# """ ### # """ #????????# | | ##????????????# """ + # #???###### | | ??????????????# """ ##### ###########??# + | | ##????????????# ????# ## #??# ## | | ????????????# ?????# ## """"" #??# #? | | ?????????????#+#+####### # """"" #??# #? | | ?????????????# # """"" #??# #? | | ?????????????# + """"" #??# #? | | ?????????????# # """"" #??# #? | | ##???????????###+#+## # """"" #??# #? | | ???????????# # # """"" #??# #? | | " ???????????# # # #??######? | | " ???????????# """ + ### ##########????????? | | " ???????????# """ # #?# #?????????????????? | | " ???????????# """ #####?# #?????????????????? | | ???????????# !#?????######?????????????????? | | ???????????########????????????????????????????? | | ##???????????????????????????????????????????????? | | ?????????????????????????????????????????????????? | | ?????????????????????????????????????????????????? | | ?????????????????????????????????????????????????? | | ?????????????????????????????????????????????????? | | | | | +----------------------------------------------------+ Best States ------------- Heat Dissipation 28 Energy Generation 10 Energy Capacity 250 Matter Stores 300 Matter Capacity 300 Sight Range 16 Terrain Scan Density 10 Evasion (%) 55 Item Schematics ----------------- None Robot Schematics ------------------ None Fabricated ------------ Nothing Repaired ---------- Nothing Studied --------- None Alien Tech Used ----------------- None Achievements -------------- DATA ERROR: Steam Global Achievement% Challenges ------------ None Game ------ Seed SingularityScanCartridge Manual? 0 Play Time 00:09:05 Cumulative 4.3 hours Start 2025.11.05 @ 11:52:14 End 2025.11.05 @ 11:59:25 Sessions 1 Manual Loads 0 Difficulty Rogue Special Mode None Game No. 14 Rogue 14 Adventurer 0 Explorer 0 Win Type - Total 0 Types 0/0/0/0/0/0/0/0/0/0 Lore% 4 Gallery% 8 Achievement% 5 Wizard Run 0 Options --------- Layout 1 ASCII 0 Keyboard 1 Movement Vi Keybinds 0 Fullscreen 1 Font 24/Smallcaps Map View 50x35 Zoom Use 0% Tactical HUD 1 Map Filters NONE Filters NONE Steam 1 RUN: 66e01e23-6bc4-478d-9e7d-a6a9d896eb3f